[Event "44th Chess Olympiad Open 2022"]
[Site "Chennai"]
[Date "2022.08.07"]
[Round "9.44"]
[White "Boudriga, Mohamed Ali"]
[Black "Abdelazeez, Mohamed Abdalla"]
[Result "1-0"]
[WhiteElo "2308"]
[BlackElo "2182"]
[Annotator "RC"]
[PlyCount "63"]
[EventDate "2022.??.??"]
[TimeControl "60"]

1. e4 {[%emt 0:02:14]} c5 {[%emt 0:02:57]} 2. Nf3 {[%emt 0:09:22]} g6 {[%emt 0:
00:00]} 3. c3 {[%emt 0:01:25]} d5 {[%emt 0:08:11]} 4. exd5 {[%emt 0:02:03]}
Qxd5 {[%emt 0:00:08]} 5. d4 {[%emt 0:00:11]} Bg4 {[%emt 0:00:22]} 6. Be2 {
[%emt 0:00:18]} Nc6 {[%emt 0:00:27]} 7. h3 {[%emt 0:03:27]} Bf5 {[%emt 0:05:56]
} 8. dxc5 {[%emt 0:05:39]} Qxc5 {[%emt 0:02:37]} 9. Be3 {[%emt 0:00:44]} Qa5 {
[%emt 0:00:07]} 10. Qb3 {[%emt 0:23:07]} Qc7 {[%emt 0:08:56]} 11. Bc4 {[%emt 0:
00:00]} e5 {[%emt 0:00:44]} 12. Na3 {[%emt 0:07:06]} g5 {[%emt 0:12:54]} 13.
Nb5 {[%emt 0:01:27]} Qe7 {[%emt 0:00:10]} 14. Nxg5 {[%emt 0:03:33]} Bg6 {
[%emt 0:12:36]} 15. O-O-O {[%emt 0:00:15]} Bh6 {[%emt 0:08:43]} 16. Bxf7+ {
[%emt 0:05:05]} Kf8 {[%emt 0:02:09]} 17. Ne6+ {[%emt 0:05:23]} Kxf7 {[%emt 0:
00:00]} 18. Rd7 {[%emt 0:00:12]} Bxe3+ {[%emt 0:05:45]} 19. fxe3 {[%emt 0:00:
00]} Qxd7 {[%emt 0:00:06]} 20. Nc5+ {[%emt 0:00:16]} Ke7 {[%emt 0:00:09]} 21.
Nxd7 {[%emt 0:00:19]} Kxd7 {[%emt 0:00:10]} 22. Qd5+ {[%emt 0:01:26]} Ke7 {
[%emt 0:00:06]} 23. Rf1 {[%emt 0:00:48]} Rd8 {[%emt 0:01:07]} 24. Qc5+ {
[%emt 0:00:28]} Ke6 {[%emt 0:00:23]} 25. Qc4+ {[%emt 0:04:02]} Ke7 {[%emt 0:00:
00]} 26. Nxa7 {[%emt 0:05:04]} Nxa7 {[%emt 0:03:53]} 27. Qc7+ {[%emt 0:00:56]}
Ke8 {[%emt 0:13:22]} 28. Qxe5+ {[%emt 0:01:29]} Kd7 {[%emt 0:00:19]} 29. Rd1+ {
[%emt 0:00:18]} Kc8 {[%emt 0:00:36]} 30. Rxd8+ {[%emt 0:00:15]} Kxd8 {[%emt 0:
00:00]} 31. Qxh8 {[%emt 0:00:11]} Bf7 {[%emt 0:00:04]} 32. Qd4+ {[%emt 0:00:17]
} 1-0

[Event "44th Chess Olympiad Open 2022"]
[Site "Chennai"]
[Date "2022.08.07"]
[Round "9.44"]
[White "Tagelsir, Abubaker"]
[Black "Zaibi, Amir"]
[Result "1/2-1/2"]
[WhiteElo "2232"]
[BlackElo "2398"]
[Annotator "TA"]
[PlyCount "44"]
[EventDate "2022.??.??"]
[TimeControl "60"]

{[%evp 16,44,0,-14,-6,-9,0,-32,-29,-42,-41,-43,-8,-7,0,-10,0,0,0,-2,1,-24,-11,
-24,0,0,23,-19,0,0,23]} 1. e4 {[%emt 0:00:09]} c5 {[%emt 0:00:03]} 2. Nf3 {
[%emt 0:00:10]} Nc6 {[%emt 0:00:42]} 3. g3 {[%emt 0:00:08]} Nf6 {[%emt 0:00:29]
} 4. Nc3 {[%emt 0:01:36]} g6 {[%emt 0:02:21]} 5. Bg2 {[%emt 0:02:40]} Bg7 {
[%emt 0:00:14]} 6. O-O {[%emt 0:00:10]} O-O {[%emt 0:00:09]} 7. d3 {[%emt 0:00:
00]} d6 {[%emt 0:01:55]} 8. h3 {[%emt 0:00:58]} Rb8 {[%emt 0:02:24]} 9. Be3 {
[%emt 0:01:21]} Nd7 {[%emt 0:03:14] B25: Closed Sicilian: 3 g3, lines without
early Be3.} 10. Qd2 {[%emt 0:03:00]} Nd4 {[%emt 0:01:56]} 11. Ne1 {[%emt 0:00:
00]} b5 {[%emt 0:08:58] Black is slightly better.} 12. Bh6 {[%emt 0:04:12]}
Bxh6 {[%emt 0:07:17]} 13. Qxh6 {[%emt 0:08:06] [#]} e6 $146 {[%emt 0:00:16]} ({
Predecessor:} 13... b4 14. Nd1 a5 15. c3 Nb5 16. Nf3 f6 17. Qd2 Ne5 18. Ne1 Qb6
19. Ne3 bxc3 20. bxc3 {1-0 (31) Tempone,M (2445)-Seminara,J (2320) Mar del
Plata 1998}) 14. Nf3 {[%emt 0:06:12]} Nxf3+ {[%emt 0:01:29]} 15. Bxf3 {[%emt 0:
00:00]} Qf6 {[%emt 0:01:22]} 16. Bg2 {[%emt 0:00:35]} b4 {[%emt 0:03:12]} 17.
Nd1 {[%emt 0:02:15]} a5 {[%emt 0:00:23]} 18. Rb1 {[%emt 0:08:31]} Ba6 {[%emt 0:
00:00]} 19. Ne3 {[%emt 0:00:20] Prevents c4.} Qg7 {[%emt 0:01:59]} 20. Qh4 {
[%emt 0:02:12]} Qf6 {[%emt 0:02:38] Against Qe7} 21. Qh6 {[%emt 0:00:44]} Qg7 {
[%emt 0:01:08]} 22. Qh4 {[%emt 0:00:27]} Qf6 {[%emt 0:00:05] Prevents Qe7.
Weighted Error Value: White=0.12 (very precise) /Black=0.10 (very precise)}
1/2-1/2

[Event "44th Chess Olympiad Open 2022"]
[Site "Chennai"]
[Date "2022.08.07"]
[Round "9.44"]
[White "Meddeb, Anis"]
[Black "Hassan, Tarek Ahmed"]
[Result "0-1"]
[WhiteElo "2121"]
[BlackElo "2209"]
[Annotator "NA RC"]
[PlyCount "54"]
[EventDate "2022.??.??"]
[TimeControl "60"]

1. e4 {[%emt 0:00:03]} c5 {[%emt 0:00:15]} 2. Nf3 {[%emt 0:00:08]} Nc6 {
[%emt 0:00:12]} 3. d4 {[%emt 0:00:07]} cxd4 {[%emt 0:00:07]} 4. Nxd4 {[%emt 0:
00:00]} g6 {[%emt 0:02:36]} 5. Nxc6 {[%emt 0:01:32]} bxc6 {[%emt 0:01:07]} 6.
Qd4 {[%emt 0:00:09]} Nf6 {[%emt 0:00:25]} 7. e5 {[%emt 0:00:11]} Nd5 {[%emt 0:
00:00]} 8. Bc4 {[%emt 0:07:04]} Qb6 {[%emt 0:03:14]} 9. c3 {[%emt 0:08:07]}
Qxd4 {[%emt 0:07:27]} 10. cxd4 {[%emt 0:00:02]} Nb6 {[%emt 0:00:13]} 11. Bd3 {
[%emt 0:04:35]} Bg7 {[%emt 0:00:52]} 12. Nc3 {[%emt 0:00:59]} O-O {[%emt 0:00:
00]} 13. h4 {[%emt 0:01:17]} d6 {[%emt 0:01:38]} 14. f4 {[%emt 0:00:48]} Rd8 {
[%emt 0:06:16]} 15. Be4 {[%emt 0:01:15]} dxe5 {[%emt 0:06:01]} 16. dxe5 {
[%emt 0:00:50]} Nd5 {[%emt 0:06:40]} 17. h5 {[%emt 0:10:30]} Bg4 {[%emt 0:00:
00]} 18. Bxd5 {[%emt 0:06:20]} cxd5 {[%emt 0:00:16]} 19. hxg6 {[%emt 0:00:26]}
hxg6 {[%emt 0:00:21]} 20. Rh4 {[%emt 0:00:56]} Bf5 {[%emt 0:04:12]} 21. g4 {
[%emt 0:00:28]} Bd3 {[%emt 0:00:51]} 22. Rh3 {[%emt 0:02:39]} Ba6 {[%emt 0:00:
00]} 23. Bd2 {[%emt 0:00:56]} Rac8 {[%emt 0:07:25]} 24. Rc1 {[%emt 0:08:22]} g5
{[%emt 0:02:17]} 25. Rh5 {[%emt 0:20:54]} gxf4 {[%emt 0:00:46]} 26. Bxf4 {
[%emt 0:00:32]} Rc4 {[%emt 0:00:19]} 27. Ne2 {[%emt 0:00:18]} Re4 {[%emt 0:00:
00]} 0-1

[Event "44th Chess Olympiad Open 2022"]
[Site "Chennai"]
[Date "2022.08.07"]
[Round "9.44"]
[White "Hamid Mohammed"]
[Black "Amdouni, Zoubaier"]
[Result "0-1"]
[WhiteElo "2116"]
[BlackElo "2224"]
[Annotator "RC"]
[PlyCount "94"]
[EventDate "2022.??.??"]
[TimeControl "60"]

1. Nf3 {[%emt 0:00:02]} Nf6 {[%emt 0:00:18]} 2. c4 {[%emt 0:00:07]} e6 {
[%emt 0:01:53]} 3. Nc3 {[%emt 0:00:11]} d5 {[%emt 0:00:13]} 4. e3 {[%emt 0:00:
00]} Bd6 {[%emt 0:01:50]} 5. b3 {[%emt 0:00:10]} c6 {[%emt 0:01:24]} 6. Bb2 {
[%emt 0:02:37]} Nbd7 {[%emt 0:00:45]} 7. d4 {[%emt 0:01:49]} Qe7 {[%emt 0:00:
00]} 8. Be2 {[%emt 0:03:37]} Ba3 {[%emt 0:04:20]} 9. Qc2 {[%emt 0:09:05]} Bxb2
{[%emt 0:05:57]} 10. Qxb2 {[%emt 0:03:23]} O-O {[%emt 0:12:24]} 11. O-O {
[%emt 0:00:10]} dxc4 {[%emt 0:00:32]} 12. bxc4 {[%emt 0:00:16]} e5 {[%emt 0:00:
00]} 13. d5 {[%emt 0:16:16]} e4 {[%emt 0:07:47]} 14. Nd2 {[%emt 0:09:55]} cxd5
{[%emt 0:13:50]} 15. Nxd5 {[%emt 0:06:21]} Nxd5 {[%emt 0:00:31]} 16. cxd5 {
[%emt 0:00:07]} Nf6 {[%emt 0:00:06]} 17. Qd4 {[%emt 0:01:16]} Rd8 {[%emt 0:00:
00]} 18. Bc4 {[%emt 0:01:54]} b5 {[%emt 0:02:27]} 19. Bb3 {[%emt 0:09:02]} Bb7
{[%emt 0:00:28]} 20. Rfc1 {[%emt 0:04:38]} Bxd5 {[%emt 0:01:21]} 21. Qb2 {
[%emt 0:00:45]} Ng4 {[%emt 0:10:04]} 22. Bd1 {[%emt 0:07:48]} Qe5 {[%emt 0:00:
00]} 23. Qxe5 {[%emt 0:00:20]} Nxe5 {[%emt 0:00:01]} 24. Rc5 {[%emt 0:02:32]}
a6 {[%emt 0:12:11]} 25. Bb3 {[%emt 0:01:23]} Bxb3 {[%emt 0:00:25]} 26. Rxe5 {
[%emt 0:00:15]} Bd5 {[%emt 0:01:05]} 27. Nb3 {[%emt 0:08:00]} Kf8 {[%emt 0:00:
00]} 28. Nd4 {[%emt 0:01:04]} g6 {[%emt 0:02:12]} 29. g4 {[%emt 0:04:52]} f6 {
[%emt 0:01:21]} 30. Rxd5 {[%emt 0:00:10]} Rxd5 {[%emt 0:00:04]} 31. Ne6+ {
[%emt 0:00:09]} Ke7 {[%emt 0:00:17]} 32. Nc7 {[%emt 0:00:06]} Rad8 {[%emt 0:00:
00]} 33. Nxd5+ {[%emt 0:00:28]} Rxd5 {[%emt 0:00:01]} 34. a4 {[%emt 0:00:42]}
b4 {[%emt 0:01:09]} 35. Rc1 {[%emt 0:00:02]} Kd6 {[%emt 0:03:03]} 36. Kg2 {
[%emt 0:03:26]} b3 {[%emt 0:04:51]} 37. Rc8 {[%emt 0:00:32]} b2 {[%emt 0:00:21]
} 38. Rb8 {[%emt 0:00:14]} Rb5 {[%emt 0:00:54]} 39. axb5 {[%emt 0:03:13]} b1=Q
{[%emt 0:00:10]} 40. Rb6+ {[%emt 0:00:13]} Ke5 {[%emt 0:00:55]} 41. Rxa6 {
[%emt 0:30:57]} Qxb5 {[%emt 0:30:12]} 42. Ra8 {[%emt 0:00:24]} Qe2 {[%emt 0:00:
00]} 43. Re8+ {[%emt 0:01:31]} Kd5 {[%emt 0:02:57]} 44. g5 {[%emt 0:00:52]}
Qg4+ {[%emt 0:00:49]} 45. Kf1 {[%emt 0:00:05]} Qxg5 {[%emt 0:00:09]} 46. Rd8+ {
[%emt 0:00:26]} Ke5 {[%emt 0:00:47]} 47. Re8+ {[%emt 0:00:28]} Kf5 {[%emt 0:00:
00]} 0-1

[Event "44th Chess Olympiad Open 2022"]
[Site "Chennai"]
[Date "2022.08.07"]
[Round "9.45"]
[White "Al Hosani, Omran"]
[Black "Kojima, Shinya"]
[Result "1/2-1/2"]
[WhiteElo "2215"]
[BlackElo "2346"]
[Annotator "RC"]
[PlyCount "46"]
[EventDate "2022.??.??"]
[TimeControl "60"]

1. e4 {[%emt 0:00:02]} e5 {[%emt 0:00:14]} 2. Nf3 {[%emt 0:00:11]} Nc6 {
[%emt 0:00:07]} 3. Bb5 {[%emt 0:00:15]} a6 {[%emt 0:00:08]} 4. Ba4 {[%emt 0:00:
00]} Nf6 {[%emt 0:00:06]} 5. d3 {[%emt 0:01:54]} Bc5 {[%emt 0:00:19]} 6. O-O {
[%emt 0:00:21]} d6 {[%emt 0:00:24]} 7. c3 {[%emt 0:05:58]} Ba7 {[%emt 0:00:55]}
8. Re1 {[%emt 0:02:30]} O-O {[%emt 0:00:15]} 9. Nbd2 {[%emt 0:00:11]} Ne7 {
[%emt 0:00:16]} 10. Nf1 {[%emt 0:00:37]} Ng6 {[%emt 0:00:06]} 11. Bb3 {[%emt 0:
00:00]} c6 {[%emt 0:06:25]} 12. Ng3 {[%emt 0:10:18]} h6 {[%emt 0:01:18]} 13. h3
{[%emt 0:00:44]} d5 {[%emt 0:00:21]} 14. exd5 {[%emt 0:05:04]} Nxd5 {[%emt 0:
00:00]} 15. d4 {[%emt 0:00:24]} exd4 {[%emt 0:01:12]} 16. Nxd4 {[%emt 0:02:02]}
Ndf4 {[%emt 0:21:54]} 17. Qf3 {[%emt 0:18:18]} Qf6 {[%emt 0:10:11]} 18. Ne4 {
[%emt 0:09:25]} Qe5 {[%emt 0:10:28]} 19. Bxf4 {[%emt 0:08:07]} Nxf4 {[%emt 0:
00:00]} 20. Ng3 {[%emt 0:02:32]} Qg5 {[%emt 0:19:18]} 21. Ne4 {[%emt 0:01:59]}
Qe5 {[%emt 0:02:09]} 22. Ng3 {[%emt 0:00:10]} Qg5 {[%emt 0:00:50]} 23. Ne4 {
[%emt 0:00:12]} Qe5 {[%emt 0:01:13]} 1/2-1/2

[Event "44th Chess Olympiad Open 2022"]
[Site "Chennai"]
[Date "2022.08.07"]
[Round "9.45"]
[White "Averbukh, Alex"]
[Black "Sultan, Ibrahim"]
[Result "0-1"]
[WhiteElo "2155"]
[BlackElo "2108"]
[Annotator "ChessBase"]
[PlyCount "84"]
[EventDate "2022.??.??"]
[TimeControl "60"]

1. e4 {[%emt 0:00:06]} e5 {[%emt 0:00:06]} 2. Nf3 {[%emt 0:00:06]} Nc6 {
[%emt 0:00:07]} 3. d4 {[%emt 0:00:05]} exd4 {[%emt 0:00:45]} 4. Nxd4 {[%emt 0:
00:00]} Bc5 {[%emt 0:00:07]} 5. Nb3 {[%emt 0:00:12]} Bb6 {[%emt 0:00:06]} 6.
Nc3 {[%emt 0:00:05]} Nf6 {[%emt 0:00:06]} 7. Qe2 {[%emt 0:00:13]} O-O {[%emt 0:
00:00]} 8. Be3 {[%emt 0:00:43]} Re8 {[%emt 0:06:40]} 9. f3 {[%emt 0:00:58]} d6
{[%emt 0:13:38]} 10. O-O-O {[%emt 0:02:16]} Be6 {[%emt 0:00:09]} 11. g4 {
[%emt 0:01:55]} Bxb3 {[%emt 0:14:45]} 12. cxb3 {[%emt 0:03:20]} Qc8 {[%emt 0:
00:00]} 13. g5 {[%emt 0:08:35]} Nh5 {[%emt 0:00:06]} 14. Nd5 {[%emt 0:02:43]}
Ne7 {[%emt 0:04:07]} 15. Nxb6 {[%emt 0:11:04]} axb6 {[%emt 0:02:14]} 16. f4 {
[%emt 0:01:42]} g6 {[%emt 0:00:04]} 17. Kb1 {[%emt 0:00:15]} d5 {[%emt 0:00:18]
} 18. Bc1 {[%emt 0:05:56]} dxe4 {[%emt 0:03:25]} 19. Qxe4 {[%emt 0:01:34]} Nc6
{[%emt 0:00:04]} 20. Qc4 {[%emt 0:01:06]} Qg4 {[%emt 0:14:33]} 21. Bd3 {
[%emt 0:04:00]} Rad8 {[%emt 0:01:37]} 22. Bc2 {[%emt 0:05:43]} Ng7 {[%emt 0:00:
00]} 23. b4 {[%emt 0:04:31]} Ne6 {[%emt 0:01:21]} 24. h4 {[%emt 0:10:06]} Rd4 {
[%emt 0:01:24]} 25. Qc3 {[%emt 0:03:36]} Red8 {[%emt 0:04:29]} 26. Rxd4 {
[%emt 0:12:12]} Ncxd4 {[%emt 0:00:31]} 27. h5 {[%emt 0:07:06]} Qg2 {[%emt 0:00:
00]} 28. Re1 {[%emt 0:02:16]} gxh5 {[%emt 0:00:00]} 29. Be4 {[%emt 0:00:48]}
Qg4 {[%emt 0:00:21]} 30. Qe3 {[%emt 0:03:47]} Ng7 {[%emt 0:00:41]} 31. Qd3 {
[%emt 0:04:32]} Ngf5 {[%emt 0:00:34]} 32. Rd1 {[%emt 0:00:30]} Rd6 {[%emt 0:00:
00]} 33. Re1 {[%emt 0:01:53]} h4 {[%emt 0:00:21]} 34. Qc3 {[%emt 0:00:47]} c6 {
[%emt 0:01:12]} 35. Bd3 {[%emt 0:01:43]} Kf8 {[%emt 0:00:28]} 36. b3 {[%emt 0:
00:00]} h3 {[%emt 0:00:20]} 37. Be4 {[%emt 0:00:40]} h2 {[%emt 0:00:24]} 38.
Qd3 {[%emt 0:00:33]} Re6 {[%emt 0:00:19]} 39. Bb2 {[%emt 0:00:21]} Qg1 {
[%emt 0:00:36]} 40. Qd1 {[%emt 0:00:32]} h1=Q {[%emt 0:00:12]} 41. Rxg1 {
[%emt 0:03:43]} Qxe4+ {[%emt 0:00:13]} 42. Kc1 {[%emt 0:00:10]} Ne2+ {[%emt 0:
00:00]} 0-1

[Event "44th Chess Olympiad Open 2022"]
[Site "Chennai"]
[Date "2022.08.07"]
[Round "9.45"]
[White "Abdulrahman Mohammad, Al Taher"]
[Black "Kobayashi, Atsuhiko"]
[Result "1-0"]
[WhiteElo "2029"]
[BlackElo "2156"]
[Annotator "RC"]
[PlyCount "147"]
[EventDate "2022.??.??"]
[TimeControl "60"]

1. d4 {[%emt 0:00:05]} Nf6 {[%emt 0:00:05]} 2. c4 {[%emt 0:00:20]} e6 {[%emt 0:
00:00]} 3. Nc3 {[%emt 0:00:21]} Bb4 {[%emt 0:00:07]} 4. e3 {[%emt 0:00:41]} O-O
{[%emt 0:00:07]} 5. Bd3 {[%emt 0:00:31]} d5 {[%emt 0:00:06]} 6. cxd5 {[%emt 0:
00:00]} exd5 {[%emt 0:00:06]} 7. Nge2 {[%emt 0:01:18]} Re8 {[%emt 0:00:06]} 8.
O-O {[%emt 0:02:58]} Bd6 {[%emt 0:00:04]} 9. Qc2 {[%emt 0:02:06]} a6 {[%emt 0:
00:00]} 10. a3 {[%emt 0:03:26]} Nbd7 {[%emt 0:03:04]} 11. b4 {[%emt 0:04:08]}
c6 {[%emt 0:02:02]} 12. f3 {[%emt 0:06:12]} a5 {[%emt 0:02:44]} 13. Rb1 {
[%emt 0:03:54]} axb4 {[%emt 0:01:08]} 14. axb4 {[%emt 0:00:14]} Qb6 {[%emt 0:
00:00]} 15. Kh1 {[%emt 0:09:36]} Nf8 {[%emt 0:01:48]} 16. e4 {[%emt 0:06:20]}
dxe4 {[%emt 0:01:59]} 17. fxe4 {[%emt 0:00:27]} Be7 {[%emt 0:02:01]} 18. Bg5 {
[%emt 0:13:28]} Ng4 {[%emt 0:07:19]} 19. Bxe7 {[%emt 0:06:58]} Rxe7 {[%emt 0:
00:00]} 20. Rf3 {[%emt 0:04:30]} Ne6 {[%emt 0:01:58]} 21. h3 {[%emt 0:03:20]}
Nxd4 {[%emt 0:13:13]} 22. Nxd4 {[%emt 0:01:17]} Qxd4 {[%emt 0:00:05]} 23. hxg4
{[%emt 0:05:08]} Bxg4 {[%emt 0:00:10]} 24. Ne2 {[%emt 0:01:31]} Qd6 {[%emt 0:
00:00]} 25. Rf2 {[%emt 0:12:31]} Re6 {[%emt 0:01:58]} 26. Kg1 {[%emt 0:01:18]}
Rh6 {[%emt 0:02:00]} 27. Qc4 {[%emt 0:05:10]} Bxe2 {[%emt 0:10:14]} 28. Qxf7+ {
[%emt 0:02:02]} Kh8 {[%emt 0:00:06]} 29. e5 {[%emt 0:00:21]} Bh5 {[%emt 0:00:
00]} 30. exd6 {[%emt 0:01:23]} Bxf7 {[%emt 0:00:04]} 31. Rxf7 {[%emt 0:00:06]}
Rxd6 {[%emt 0:00:05]} 32. Rbf1 {[%emt 0:00:33]} g6 {[%emt 0:00:58]} 33. Be4 {
[%emt 0:01:11]} Rd4 {[%emt 0:02:27]} 34. Re7 {[%emt 0:00:43]} Kg8 {[%emt 0:00:
00]} 35. b5 {[%emt 0:00:35]} Rf8 {[%emt 0:00:50]} 36. bxc6 {[%emt 0:01:26]}
Rxf1+ {[%emt 0:01:18]} 37. Kxf1 {[%emt 0:00:02]} bxc6 {[%emt 0:00:43]} 38. Bxc6
{[%emt 0:00:04]} Rd6 {[%emt 0:00:29]} 39. Bf3 {[%emt 0:00:10]} Rd2 {[%emt 0:00:
00]} 40. Kg1 {[%emt 0:00:29]} Rb2 {[%emt 0:00:27]} 41. Rd7 {[%emt 0:30:41]} Rc2
{[%emt 0:30:58]} 42. Kh2 {[%emt 0:00:07]} Rb2 {[%emt 0:00:06]} 43. Kh3 {
[%emt 0:00:00]} Rb5 {[%emt 0:00:00]} 44. Kh4 {[%emt 0:00:00]} Re5 {[%emt 0:00:
00]} 45. Bd5+ {[%emt 0:00:00]} Kh8 {[%emt 0:00:00]} 46. g4 {[%emt 0:00:00]} h6
{[%emt 0:00:00]} 47. Kg3 {[%emt 0:00:00]} Re1 {[%emt 0:00:00]} 48. Kf4 {
[%emt 0:00:00]} Rf1+ {[%emt 0:00:00]} 49. Kg3 {[%emt 0:00:00]} Rf6 {[%emt 0:00:
00]} 50. Be4 {[%emt 0:00:00]} Kg8 {[%emt 0:00:00]} 51. Rc7 {[%emt 0:00:00]} Kh8
{[%emt 0:00:00]} 52. Bc2 {[%emt 0:00:00]} Kg8 {[%emt 0:00:00]} 53. Kh4 {
[%emt 0:00:00]} Rb6 {[%emt 0:00:00]} 54. Kg3 {[%emt 0:00:00]} Rf6 {[%emt 0:00:
00]} 55. Be4 {[%emt 0:00:00]} Kh8 {[%emt 0:00:00]} 56. Rd7 {[%emt 0:00:00]} Kg8
{[%emt 0:00:00]} 57. Bd3 {[%emt 0:00:00]} Kh8 {[%emt 0:00:00]} 58. g5 {[%emt 0:
00:00]} hxg5 {[%emt 0:00:00]} 59. Kg4 {[%emt 0:00:00]} Rb6 {[%emt 0:00:00]} 60.
Kxg5 {[%emt 0:00:00]} Kg8 {[%emt 0:00:00]} 61. Bxg6 {[%emt 0:00:00]} Kf8 {
[%emt 0:00:00]} 62. Rf7+ {[%emt 0:00:00]} Kg8 {[%emt 0:00:00]} 63. Kh6 {
[%emt 0:02:52]} Rd6 {[%emt 0:00:00]} 64. Ra7 {[%emt 0:01:56]} Kf8 {[%emt 0:00:
00]} 65. Kg5 {[%emt 0:00:35]} Rb6 {[%emt 0:00:00]} 66. Bf5 {[%emt 0:00:24]} Rc6
{[%emt 0:00:00]} 67. Kf4 {[%emt 0:00:13]} Rc5 {[%emt 0:00:00]} 68. Ke4 {
[%emt 0:00:32]} Rb5 {[%emt 0:00:00]} 69. Be6 {[%emt 0:00:08]} Rc5 {[%emt 0:00:
00]} 70. Bd5 {[%emt 0:00:10]} Rc1 {[%emt 0:00:00]} 71. Ke5 {[%emt 0:01:35]}
Re1+ {[%emt 0:00:00]} 72. Kd6 {[%emt 0:00:20]} Re7 {[%emt 0:03:35]} 73. Ra2 {
[%emt 0:00:22]} Re1 {[%emt 0:01:09]} 74. Rg2 {[%emt 0:00:34]} 1-0

[Event "44th Chess Olympiad Open 2022"]
[Site "Chennai"]
[Date "2022.08.07"]
[Round "9.46"]
[White "Al Qudaimi, Basheer"]
[Black "Andrianiaina, Heritiana"]
[Result "1-0"]
[WhiteElo "2424"]
[BlackElo "2095"]
[Annotator "TA"]
[PlyCount "87"]
[EventDate "2022.??.??"]
[TimeControl "60"]

{[%evp 9,87,-14,-6,-6,-5,-5,-9,-29,-21,-33,-31,-27,-22,-26,-34,-51,-54,-59,-87,
-103,-98,-111,-79,-104,-84,-108,-98,-186,-168,-161,-161,-171,-165,-173,-168,
-158,-26,-27,0,-166,-43,-194,-57,-50,-43,-65,0,0,0,0,0,0,0,0,126,130,155,174,
198,158,296,313,305,283,290,302,803,803,782,782,683,683,414,181,876,859,1219,
1078,29975,29976]} 1. e4 {[%emt 0:00:01]} c5 {[%emt 0:01:12]} 2. c4 {[%emt 0:
00:00]} Nc6 {[%emt 0:01:31]} 3. Nf3 {[%emt 0:00:02]} e5 {[%emt 0:01:07]} 4. d3
{[%emt 0:00:58]} d6 {[%emt 0:00:39]} 5. h3 {[%emt 0:00:18]} f5 {[%emt 0:01:27]}
6. Nc3 {[%emt 0:00:22] B30: Sicilian: 2...Nc6 3 Bb5, lines without ...g6.} Nf6
{[%emt 0:00:29]} 7. a3 {[%emt 0:00:09]} Be7 {[%emt 0:01:19]} 8. exf5 {[%emt 0:
00:00] The position is equal.} Bxf5 {[%emt 0:01:05] [#]} 9. g4 $146 {[%emt 0:
00:00]} ({Predecessor:} 9. Be3 d5 10. cxd5 Nxd5 11. Nxd5 Qxd5 12. Be2 Rd8 13.
Qc2 Bxd3 14. Bxd3 Qxd3 15. Qxd3 Rxd3 {0-1 (36) Martindale,R (710)-Andraschko,F
(2179) LSS email 2012}) 9... Be6 {[%emt 0:09:56]} 10. Bg2 {[%emt 0:04:07]} O-O
{[%emt 0:02:17]} 11. Ng5 {[%emt 0:00:40]} Bd7 {[%emt 0:02:33][%cal Yf6g4]} 12.
Nd5 {[%emt 0:07:30]} Kh8 {[%emt 0:02:11]} 13. Nxf6 {[%emt 0:02:17]} gxf6 {
[%emt 0:04:48]} 14. Ne4 {[%emt 0:00:14]} f5 {[%emt 0:01:14]} 15. gxf5 {[%emt 0:
00:00]} Bxf5 {[%emt 0:00:16]} 16. Be3 {[%emt 0:03:43]} Rb8 {[%emt 0:05:43]} 17.
Ng3 {[%emt 0:07:11]} Be6 {[%emt 0:21:17]} 18. Bd5 {[%emt 0:13:43]} (18. Bxc6
$17 bxc6 19. Qc2) 18... Bxd5 $19 {[%emt 0:09:48]} 19. cxd5 {[%emt 0:04:29]} Nd4
{[%emt 0:00:09]} 20. Bxd4 {[%emt 0:00:36]} cxd4 {[%emt 0:00:47]} ({Inferior is
} 20... exd4 21. Ne4 $17) 21. b4 {[%emt 0:05:48]} Rf4 {[%emt 0:09:30] aiming
for ...Qg8.} 22. Rg1 {[%emt 0:06:15] [#]} Qc8 {[%emt 0:05:33]} (22... Qd7 $1
$17 {White must now prevent ...Bh4.} 23. Ne4 Qxh3) 23. Rc1 $1 $11 {[%emt 0:00:
00]} Qxh3 {[%emt 0:08:45] Threatens to win with ...Bh4.} 24. Rc2 $2 {[%emt 0:
00:00]} (24. Qh5 $11 {and White is okay.} Qxh5 25. Nxh5) 24... Rg8 {[%emt 0:00:
00]} (24... Rbf8 $19 {Strongly threatening ...Rf3.} 25. Qh5 Rh4) 25. Qe2 {
[%emt 0:05:00] Against Rf3} ({White has to play} 25. Rh1 $15 Qd7 26. Qh5) 25...
Bd8 {[%emt 0:03:57]} ({Black should try} 25... Bh4 $19 {[%cal Rh4g3]} 26. Qh5
Qd7) 26. Rh1 $15 {[%emt 0:01:31]} Qd7 {[%emt 0:00:40] Hoping for ...a5.} 27.
Qh5 $1 {[%emt 0:00:50]} Rg5 {[%emt 0:00:43]} (27... Rf7 $15 28. Ne4 Rfg7) 28.
Qh6 $11 {[%emt 0:01:37]} Kg8 {[%emt 0:00:46]} 29. Ne4 {[%emt 0:01:10]} Rg6 {
[%emt 0:00:12]} 30. Qh3 {[%emt 0:00:53]} Qxh3 {[%emt 0:01:05]} 31. Rxh3 {
[%emt 0:00:01]} Rf8 {[%emt 0:00:29]} ({But not} 31... Rg1+ 32. Ke2 $14) (31...
Rf7 $1 $11) 32. Rg3 $16 {[%emt 0:01:50]} Rxg3 {[%emt 0:00:30]} 33. fxg3 {
[%emt 0:00:01] Endgame KRB-KRN} Bb6 {[%emt 0:00:31]} 34. Ke2 {[%emt 0:01:09]}
Rd8 {[%emt 0:00:26] [#]} (34... Rf7 $16) 35. a4 $1 $18 {[%emt 0:00:14]} a5 {
[%emt 0:00:07]} 36. Rb2 {[%emt 0:00:26]} axb4 {[%emt 0:00:00]} 37. Rxb4 {
[%emt 0:00:01]} Bc5 {[%emt 0:00:16]} (37... Bc7 38. Rxb7 Rc8) 38. Rxb7 {
[%emt 0:00:06]} Ra8 {[%emt 0:00:14]} 39. Nf6+ {[%emt 0:03:47]} Kf8 {[%emt 0:00:
01]} 40. Rxh7 {[%emt 0:00:10] And now Rh8+ would win.} Rxa4 {[%emt 0:00:16]}
41. g4 {[%emt 0:31:20]} (41. Kf3 $142) 41... Ra1 $2 {[%emt 0:00:00]} (41... Ra7
42. Nd7+ Kg8) 42. g5 {[%emt 0:00:00]} Rg1 {[%emt 0:00:38]} 43. Rb7 {[%emt 0:00:
00] Threatening mate with Kf2.} Rg2+ {[%emt 0:02:18]} 44. Kf3 {[%emt 0:00:00]
White used his chance. Weighted Error Value: White=0.29 (precise) /Black=0.55}
1-0